bitfinex/quotes_SOLUSD_20250308
["timestamp","ask_amount","ask_price","bid_price","bid_amount"]
[1741422031303,21.37161353,138.65,138.63,0.033]
[1741422031704,21.37161353,138.64,138.63,0.033]
[1741422033539,28.58451353,138.64,138.63,0.033]
[1741422034001,28.58451353,138.64,138.6,1.1430603]
[1741422034335,21.37161353,138.61,138.6,1.1430603]
[1741422035251,28.58601353,138.61,138.6,1.1430603]
[1741422035740,34.88601353,138.61,138.6,1.1430603]
[1741422035938,13.5144,138.61,138.6,1.1430603]
[1741422036611,34.88601353,138.61,138.6,1.1430603]
[1741422039143,21.37161353,138.64,138.6,1.1430603]
[1741422039339,0.03,138.65,138.61,40.02126239]
[1741422039513,0.03,138.65,138.61,21.37161353]
[1741422040136,0.03,138.65,138.6,34.41467383]
[1741422040347,21.40161353,138.65,138.6,13.0430603]
[1741422041046,21.37161353,138.64,138.6,13.0430603]
[1741422041547,21.40161353,138.65,138.6,34.41467383]
[1741422041726,0.03,138.65,138.61,40.02126239]
[1741422042136,0.03,138.65,138.61,21.37161353]
[1741422042445,0.03,138.65,138.62,18.64964886]
[1741422042806,0.03,138.65,138.64,40.02126239]
[1741422043051,0.03,138.65,138.64,51.92126239]
[1741422043851,0.03,138.65,138.64,40.48451353]
[1741422044035,0.03,138.65,138.64,30.54964886]
[1741422044238,0.03,138.65,138.64,11.9]
[1741422045537,0.03,138.65,138.64,19.1129]
[1741422046429,0.03,138.65,138.64,7.2129]
[1741422047942,0.03,138.65,138.63,7.2134]
[1741422048134,0.03,138.65,138.63,28.58501353]
[1741422048864,0.03,138.65,138.64,40.02126239]
[1741422050246,0.03,138.65,138.64,47.23416239]
[1741422051550,0.03,138.65,138.64,59.13416239]
[1741422051767,0.03,138.71,138.67,21.37161353]
[1741422052048,21.40161353,138.71,138.66,18.64964886]
[1741422052647,28.61091353,138.71,138.65,21.37161353]
[1741422052828,21.40161353,138.71,138.65,21.37161353]
[1741422053433,21.40161353,138.71,138.66,7.2118]
[1741422053844,21.40161353,138.71,138.66,28.58341353]
[1741422054551,0.03,138.71,138.66,28.58341353]
[1741422055053,0.03,138.71,138.67,40.02126239]
[1741422055558,0.03,138.71,138.68,7.2108]
[1741422057345,0.03,138.71,138.67,18.64964886]
[1741422057555,0.03,138.71,138.67,25.86084886]
[1741422059156,21.37161353,138.7,138.66,11.9]
[1741422059528,21.37161353,138.7,138.66,19.1118]
[1741422059836,21.40161353,138.71,138.66,19.1118]
[1741422060040,0.03,138.71,138.66,40.48341353]
[1741422060451,21.37161353,138.7,138.66,11.9]
[1741422060635,21.37161353,138.69,138.66,11.9]
[1741422060831,21.37161353,138.69,138.63,28.61771353]
[1741422061158,21.37161353,138.68,138.63,7.2461]
[1741422062154,28.58241353,138.68,138.63,0.033]
[1741422063346,21.37161353,138.68,138.63,0.033]
[1741422063731,28.58241353,138.68,138.63,0.033]
[1741422064070,21.37161353,138.67,138.63,0.033]
[1741422064438,21.37161353,138.64,138.63,0.033]
[1741422064651,27.75161353,138.64,138.63,0.033]
[1741422065862,34.96451353,138.64,138.63,0.033]
[1741422067041,27.75161353,138.64,138.63,0.033]
[1741422067436,34.96451353,138.64,138.63,0.033]
[1741422068578,6.38,138.64,138.63,0.033]
[1741422068757,21.37161353,138.65,138.63,0.033]
[1741422068948,21.37161353,138.64,138.63,0.033]
[1741422069949,1.6272,138.63,138.6,1.1430603]
[1741422070165,21.37161353,138.61,138.6,1.1430603]
[1741422070948,34.98581353,138.62,138.6,1.1430603]
[1741422071153,21.37161353,138.62,138.6,1.1430603]
[1741422071477,34.98521353,138.63,138.6,1.1430603]
[1741422072671,21.37161353,138.62,138.6,1.1430603]
[1741422072875,21.37161353,138.61,138.6,1.1430603]
[1741422073381,21.37161353,138.62,138.6,1.1430603]
[1741422074158,7.2144,138.61,138.6,1.1430603]
[1741422074474,28.58451353,138.64,138.6,1.1430603]
[1741422074654,21.37161353,138.62,138.6,1.1430603]
[1741422074859,21.37161353,138.61,138.6,1.1430603]
[1741422075276,13.68824897,138.61,138.6,1.1430603]
[1741422076162,13.68824897,138.62,138.6,1.1430603]
[1741422077459,13.68824897,138.61,138.6,1.1430603]
[1741422077779,20.08824897,138.61,138.6,1.1430603]
[1741422078659,27.30264897,138.61,138.6,1.1430603]
[1741422079054,9.9653,138.57,138.5,0.033]
[1741422079253,13.68824897,138.51,138.46,0.033]
[1741422079457,13.68824897,138.47,138.46,0.033]
[1741422080288,50.0,138.42,138.37,11.2873563]
[1741422080465,13.18824897,138.38,138.37,11.2873563]
[1741422080658,7.2238,138.43,138.37,11.2873563]
[1741422080863,13.68824897,138.39,138.37,11.2873563]
[1741422081068,13.68824897,138.4,138.37,11.2873563]
[1741422081275,27.96480332,138.43,138.37,11.2873563]
[1741422081584,21.44480332,138.4,138.37,11.2873563]
[1741422081892,21.44480332,138.41,138.37,11.2873563]
[1741422082382,21.44480332,138.4,138.37,11.2873563]
[1741422083581,6.52,138.43,138.35,18.64964886]
[1741422083582,21.44480332,138.41,138.35,18.64964886]
[1741422083781,21.44480332,138.41,138.37,0.033]
[1741422084585,21.44480332,138.42,138.37,0.033]
[1741422084790,21.44480332,138.41,138.37,0.033]
[1741422085210,21.44480332,138.4,138.37,0.033]
[1741422085489,21.44480332,138.4,138.33,21.44480332]
[1741422085659,21.44480332,138.4,138.34,21.44480332]
[1741422085861,21.44480332,138.41,138.34,21.44480332]
[1741422086091,21.44480332,138.4,138.34,21.44480332]
[1741422086420,21.44480332,138.41,138.35,21.44480332]
[1741422086591,122.39445218,138.4,138.34,21.44480332]
[1741422086889,21.44480332,138.35,138.32,2.1100603]
[1741422087073,28.02480332,138.35,138.32,2.1100603]
[1741422088508,6.58,138.35,138.32,2.1100603]
[1741422089690,103.74480332,138.38,138.32,30.78436362]
[1741422089898,21.44480332,138.41,138.35,21.44480332]
[1741422090280,21.44480332,138.42,138.36,21.44480332]
[1741422090882,21.44480332,138.41,138.36,20.0]
[1741422091588,21.44480332,138.4,138.36,20.0]
[1741422091795,21.44480332,138.39,138.35,6.58]
[1741422091999,21.44480332,138.39,138.33,27.79500332]
[1741422092176,21.44480332,138.4,138.34,21.44480332]
[1741422092880,21.44480332,138.39,138.33,27.79500332]
[1741422093197,21.44480332,138.41,138.35,21.44480332]
[1741422093914,21.44480332,138.4,138.34,21.44480332]
[1741422094504,21.44480332,138.37,138.33,20.0]
[1741422094800,21.44480332,138.35,138.32,2.1100603]
[1741422095167,21.44480332,138.35,138.34,0.033]
[1741422095371,21.44480332,138.36,138.34,0.033]
[1741422095585,6.58,138.35,138.34,0.033]
[1741422095789,28.02480332,138.35,138.34,0.033]
[1741422095994,6.58,138.35,138.34,0.033]
[1741422096591,28.02480332,138.35,138.34,0.033]
[1741422096980,6.58,138.35,138.34,0.033]
[1741422098299,6.58,138.35,138.29,41.44480332]
[1741422098505,28.02480332,138.35,138.28,21.44480332]
[1741422098798,28.02480332,138.35,138.26,157.8]
[1741422098799,28.02480332,138.35,138.29,41.44480332]
[1741422098999,6.56,138.36,138.31,21.44480332]
[1741422099302,6.56,138.36,138.3,21.44480332]
[1741422099684,6.56,138.36,138.31,21.44480332]
[1741422100000,6.56,138.36,138.31,23.41761532]
[1741422101202,6.56,138.36,138.31,1.972812]
[1741422101502,6.56,138.36,138.31,23.41761532]
[1741422102608,28.00480332,138.36,138.31,1.972812]
[1741422103707,6.56,138.36,138.31,1.972812]
[1741422104891,35.23240332,138.36,138.31,21.972812]
[1741422105217,35.23240332,138.36,138.31,1.972812]
[1741422105524,21.44480332,138.35,138.31,1.972812]
[1741422106020,35.23240332,138.36,138.31,1.972812]
[1741422106715,21.44480332,138.35,138.31,1.972812]
[1741422106921,13.7876,138.36,138.31,1.972812]
[1741422106922,35.23240332,138.36,138.31,1.972812]
[1741422107227,35.23240332,138.36,138.31,2.005812]
[1741422107518,28.67290332,138.35,138.31,2.005812]
[1741422108220,7.2282,138.35,138.31,2.005812]
[1741422108428,28.67300332,138.35,138.31,2.005812]
[1741422108628,21.44480332,138.32,138.31,2.005812]
[1741422108809,21.44480332,138.33,138.31,2.005812]
[1741422109228,21.44480332,138.32,138.31,2.005812]
[1741422109410,28.67440332,138.32,138.31,2.005812]
[1741422111319,7.2296,138.32,138.26,21.44480332]
[1741422111516,21.44480332,138.32,138.26,21.44480332]
[1741422112733,21.44480332,138.31,138.25,28.67800332]
[1741422112903,21.44480332,138.3,138.24,28.67840332]
[1741422113318,21.44480332,138.29,138.24,28.67840332]
[1741422113916,21.44480332,138.3,138.24,7.2336]
[1741422114117,21.44480332,138.3,138.24,28.67840332]
[1741422114332,21.44480332,138.27,138.21,28.71300332]
[1741422114519,21.44480332,138.25,138.21,0.033]
[1741422114717,21.44480332,138.24,138.21,0.033]
[1741422115028,6.56,138.26,138.21,28.71300332]
[1741422115227,6.56,138.26,138.22,21.44480332]
[1741422115526,7.2307,138.3,138.25,28.67800332]
[1741422115527,6.56,138.3,138.25,28.67800332]
[1741422115726,8.0904,138.32,138.27,21.44480332]
[1741422115929,88.86,138.34,138.28,21.44480332]
[1741422115930,28.00480332,138.34,138.28,21.44480332]
[1741422116411,29.53520332,138.35,138.29,21.44480332]
[1741422116611,6.56,138.37,138.31,21.44480332]
[1741422116818,28.00480332,138.37,138.31,21.44480332]
[1741422117120,8.0904,138.38,138.32,21.44480332]
[1741422117121,21.44480332,138.38,138.32,21.44480332]
[1741422117604,21.44480332,138.39,138.33,28.67380332]
[1741422117939,21.44480332,138.39,138.33,29.97380332]
[1741422118121,21.44480332,138.39,138.34,21.44480332]
[1741422118608,21.44480332,138.39,138.33,29.97380332]
[1741422118937,21.44480332,138.38,138.33,29.97380332]
[1741422119117,21.44480332,138.39,138.33,29.97380332]
[1741422119712,0.03,138.37,138.33,29.97380332]
[1741422119933,21.44480332,138.35,138.3,1.3]
[1741422120138,21.44480332,138.35,138.29,28.67580332]
[1741422120345,21.44480332,138.35,138.29,22.74480332]
[1741422121346,21.44480332,138.33,138.28,29.33780332]
[1741422121714,20.07571838,138.34,138.28,29.33780332]
[1741422122842,27.30441838,138.34,138.28,29.33780332]
[1741422123044,20.07571838,138.34,138.28,36.56930332]
[1741422123341,21.44480332,138.35,138.3,21.44480332]
[1741422123527,21.44480332,138.36,138.3,21.44480332]
[1741422125040,21.44480332,138.35,138.29,28.67580332]
[1741422125230,21.44480332,138.36,138.3,21.44480332]
[1741422125715,0.03,138.37,138.33,21.44480332]
[1741422125916,0.03,138.37,138.34,21.44480332]
[1741422126116,0.03,138.37,138.36,21.44480332]
[1741422126347,0.03,138.37,138.34,21.44480332]
[1741422127016,0.03,138.37,138.34,28.67330332]
[1741422127216,0.03,138.37,138.34,21.44480332]
[1741422127451,0.03,138.37,138.32,28.67420332]
[1741422127613,0.03,138.37,138.32,29.97420332]
[1741422127822,0.03,138.37,138.33,21.44480332]
[1741422128011,0.03,138.37,138.34,21.44480332]
[1741422128218,0.03,138.37,138.35,21.44480332]
[1741422128418,0.03,138.37,138.34,21.44480332]
[1741422128721,0.03,138.37,138.35,21.44480332]
[1741422128916,0.03,138.37,138.32,25.3034]
[1741422129120,0.03,138.37,138.35,21.44480332]
[1741422129319,0.03,138.37,138.36,21.44480332]
[1741422130733,0.03,138.37,138.36,22.74480332]
[1741422131245,0.03,138.37,138.36,29.97230332]
[1741422131833,21.47480332,138.43,138.36,48.04110332]
[1741422132157,0.03,138.43,138.39,21.44480332]
[1741422132557,0.03,138.43,138.38,21.44480332]
[1741422133251,0.03,138.43,138.4,7.2254]
[1741422133421,0.03,138.43,138.4,28.67020332]
[1741422134452,0.03,138.43,138.4,7.2254]
[1741422135252,0.03,138.43,138.41,21.44480332]
[1741422135754,0.03,138.43,138.41,22.74480332]
[1741422136948,0.03,138.43,138.42,7.2243]
[1741422137131,0.03,138.43,138.41,1.3]
[1741422137856,0.03,138.43,138.38,7.2264]
[1741422137857,21.47480332,138.43,138.38,7.2264]
[1741422138056,21.44480332,138.42,138.38,8.5264]
[1741422138355,21.44480332,138.41,138.38,1.3]
[1741422138731,21.44480332,138.42,138.38,1.3]
[1741422139325,21.47480332,138.43,138.38,1.3]
[1741422139561,0.03,138.43,138.4,21.44480332]
[1741422140159,0.03,138.43,138.39,21.44480332]
[1741422140454,0.03,138.43,138.4,21.44480332]
[1741422140854,0.03,138.43,138.42,21.44480332]
[1741422141026,0.03,138.43,138.42,22.74480332]
[1741422141355,0.03,138.43,138.42,29.96910332]
[1741422141751,0.03,138.43,138.42,8.5243]
[1741422142859,0.03,138.43,138.42,29.96910332]
[1741422143454,0.03,138.43,138.42,1.3]
[1741422144327,0.03,138.43,138.4,7.2252]
[1741422144528,21.47480332,138.43,138.37,1.333]
[1741422144755,21.47480332,138.43,138.37,22.77780332]
[1741422144951,28.69880332,138.43,138.37,30.00440332]
[1741422146268,0.03,138.43,138.38,21.44480332]
[1741422146426,0.03,138.43,138.39,21.44480332]
[1741422146844,0.03,138.43,138.38,21.44480332]
[1741422147128,21.47480332,138.43,138.37,30.00440332]
[1741422147656,28.69860332,138.43,138.37,30.00440332]
[1741422148162,0.03,138.43,138.38,21.44480332]
[1741422148533,21.47480332,138.43,138.37,30.00440332]
[1741422149554,28.69860332,138.43,138.37,30.00440332]
[1741422150654,21.47480332,138.43,138.37,30.00440332]
[1741422151434,0.03,138.43,138.37,30.00440332]
[1741422151739,0.03,138.43,138.38,21.44480332]
[1741422151937,0.03,138.43,138.4,21.44480332]
[1741422152658,0.03,138.43,138.41,21.44480332]
[1741422152847,0.03,138.43,138.42,21.44480332]
[1741422153564,0.03,138.43,138.42,28.66910332]
[1741422155677,0.03,138.43,138.42,29.96910332]
[1741422157659,0.03,138.43,138.42,28.66910332]
[1741422160154,0.0001,138.43,138.42,48.61875218]
[1741422160666,0.0001,138.43,138.42,29.96910332]
[1741422162668,0.0001,138.43,138.42,28.66910332]
[1741422164253,0.0001,138.43,138.42,21.44480332]
[1741422164463,0.0001,138.43,138.4,29.97020332]
[1741422164661,0.0001,138.43,138.4,1.3]
[1741422164967,0.0001,138.43,138.42,21.44480332]
[1741422166268,0.0001,138.43,138.42,22.74480332]
[1741422166769,0.0001,138.43,138.42,41.39445218]
[1741422166948,0.0001,138.43,138.42,55.13875218]
[1741422167151,1.6656,138.5,138.42,73.19965218]
[1741422167370,1.6656,138.5,138.46,21.44480332]
[1741422167572,1.6656,138.5,138.42,7.2243]
[1741422167573,21.44480332,138.48,138.42,7.2243]
[1741422167867,21.44480332,138.47,138.42,7.2243]
[1741422168173,21.44480332,138.48,138.42,7.2243]
[1741422168473,23.11040332,138.5,138.43,21.44480332]
[1741422168855,21.44480332,138.49,138.44,7.2233]
[1741422169451,21.44480332,138.47,138.41,28.66970332]
[1741422169761,21.44480332,138.48,138.41,28.66970332]
[1741422169963,21.44480332,138.48,138.42,21.44480332]
[1741422170575,21.44480332,138.49,138.43,21.44480332]
[1741422170774,1.6656,138.5,138.46,21.44480332]
[1741422170954,1.6656,138.5,138.47,7.2217]
[1741422173074,0.03,138.5,138.48,21.44480332]
[1741422173375,0.03,138.5,138.47,46.72090332]
[1741422175574,0.03,138.5,138.47,7.2217]
[1741422177281,0.03,138.5,138.47,8.5217]
[1741422178276,0.03,138.5,138.47,29.96650332]
[1741422178574,0.03,138.5,138.48,21.44480332]
[1741422178959,0.03,138.5,138.49,41.44480332]
[1741422179157,0.0001,138.5,138.49,61.39445218]
[1741422179558,0.0001,138.5,138.49,68.61515218]
[1741422180780,0.0001,138.5,138.49,49.96550332]
[1741422180984,0.0001,138.5,138.49,28.5207]
[1741422181383,0.0001,138.5,138.48,7.2211]
[1741422181686,0.0001,138.5,138.47,8.5217]
[1741422182284,0.0001,138.5,138.47,29.96640332]
[1741422182586,0.0001,138.5,138.47,1.3]
[1741422184491,22.96960332,138.5,138.44,8.5232]
[1741422184669,21.44480332,138.49,138.44,8.5232]
[1741422185199,22.96960332,138.5,138.44,29.96800332]
[1741422185582,30.18980332,138.5,138.44,29.96800332]
[1741422185769,21.44480332,138.49,138.44,1.3]
[1741422186090,21.44480332,138.47,138.42,7.2242]
[1741422186388,21.44480332,138.47,138.42,8.5242]
[1741422186563,27.52350332,138.48,138.42,29.96900332]
[1741422187373,21.44480332,138.47,138.42,8.5242]
[1741422187688,21.44480332,138.46,138.41,1.333]
[1741422187881,21.44480332,138.46,138.41,8.5578]
[1741422188384,21.44480332,138.47,138.41,30.00260332]
[1741422188864,21.44480332,138.46,138.41,8.5578]
[1741422189591,21.44480332,138.45,138.41,1.333]
[1741422190470,21.44480332,138.46,138.41,30.00260332]
[1741422190863,21.44480332,138.46,138.41,8.5578]
[1741422191066,21.44480332,138.45,138.41,8.5578]
[1741422191289,21.44480332,138.45,138.41,1.333]
[1741422191514,6.0787,138.48,138.43,21.44480332]
[1741422191691,27.52350332,138.48,138.43,21.44480332]
[1741422191992,27.52350332,138.48,138.43,1.3]
[1741422192691,21.44480332,138.45,138.43,1.3]
[1741422193293,21.44480332,138.46,138.43,1.3]
[1741422193665,21.44480332,138.46,138.43,8.5237]
[1741422193866,21.44480332,138.47,138.43,8.5237]
[1741422194065,6.0787,138.48,138.43,8.5237]
[1741422194289,27.52350332,138.48,138.43,8.5237]
[1741422194671,27.52350332,138.48,138.43,1.3]
[1741422194672,21.44480332,138.46,138.43,1.3]
[1741422194868,21.44480332,138.46,138.43,8.5237]
[1741422195068,21.44480332,138.47,138.43,8.5237]
[1741422195792,6.0787,138.48,138.43,29.96850332]
[1741422196009,1.5248,138.5,138.45,21.44480332]
[1741422196300,0.0001,138.5,138.46,21.44480332]
[1741422197095,0.0001,138.5,138.47,21.44480332]
[1741422197594,0.0001,138.5,138.48,7.2212]
[1741422199102,0.0001,138.5,138.46,7.2223]
[1741422199475,0.0001,138.5,138.47,21.44480332]
[1741422200886,0.0001,138.5,138.49,21.44480332]
[1741422201402,0.0001,138.5,138.49,22.74480332]
[1741422201872,0.0001,138.5,138.49,29.96550332]
[1741422202067,0.0001,138.5,138.49,48.61515218]
[1741422202972,0.0001,138.5,138.49,49.69766025]
[1741422203294,0.0001,138.5,138.49,48.61515218]
[1741422204777,0.03,138.57,138.53,20.0]
[1741422204979,0.03,138.57,138.55,21.44480332]
[1741422205174,0.03,138.57,138.54,21.44480332]
[1741422205680,0.03,138.57,138.55,21.44480332]
[1741422205883,0.03,138.57,138.56,21.44480332]
[1741422206072,0.0001,138.57,138.56,48.61145218]
[1741422207900,0.0001,138.57,138.56,29.96180332]
[1741422208211,0.0001,138.57,138.56,22.74480332]
[1741422208574,0.0001,138.57,138.56,29.96180332]
[1741422210197,0.0001,138.57,138.55,21.44480332]
[1741422210400,0.0001,138.57,138.54,1.3]
[1741422210401,0.0001,138.57,138.54,29.96280332]
[1741422210585,0.0001,138.57,138.54,22.74480332]
[1741422210900,0.0001,138.57,138.54,1.3]
[1741422211473,0.0001,138.57,138.52,128.81355218]
[1741422211474,0.0001,138.57,138.52,22.74480332]
[1741422211694,21.44480332,138.56,138.52,1.3]
[1741422212084,21.44480332,138.56,138.48,21.44480332]
[1741422212085,21.44480332,138.54,138.48,21.44480332]
[1741422212495,21.44480332,138.53,138.47,22.74480332]
[1741422213107,23.07870332,138.53,138.47,22.74480332]
[1741422213298,7.2176,138.55,138.48,21.44480332]
[1741422213505,21.44480332,138.54,138.48,21.44480332]
[1741422213802,21.44480332,138.52,138.46,21.44480332]
[1741422214200,7.2176,138.55,138.47,21.44480332]
[1741422214201,21.44480332,138.53,138.47,21.44480332]
[1741422214993,21.44480332,138.54,138.48,21.44480332]
[1741422215499,21.44480332,138.55,138.49,21.44480332]
[1741422215703,34.36490332,138.56,138.5,21.44480332]
[1741422215908,12.9201,138.56,138.5,21.44480332]
[1741422216091,1.634,138.57,138.53,21.44480332]
[1741422216291,1.634,138.57,138.54,7.2181]
[1741422216510,0.0001,138.57,138.54,28.66290332]
[1741422216894,0.0001,138.57,138.55,21.44480332]
[1741422218211,0.0001,138.57,138.54,1.3]
[1741422218716,21.44480332,138.56,138.51,7.2195]
[1741422218892,21.44480332,138.55,138.49,27.96480332]
[1741422219203,21.44480332,138.56,138.5,21.44480332]
[1741422219404,21.44490332,138.57,138.51,21.44480332]
[1741422219797,21.44490332,138.57,138.5,21.44480332]
[1741422220000,21.44480332,138.56,138.5,21.44480332]
[1741422220311,21.44480332,138.56,138.51,7.2196]
[1741422220487,21.44480332,138.55,138.49,27.96480332]
[1741422220687,21.44480332,138.55,138.49,13.7405]
[1741422220900,21.44480332,138.55,138.49,35.18530332]
[1741422221301,35.75830816,138.55,138.49,13.7405]
[1741422221683,34.25020816,138.54,138.49,13.7405]
[1741422222100,0.0001,138.57,138.5,34.25020816]
[1741422222406,34.25020816,138.56,138.5,34.25020816]
[1741422222602,34.25020816,138.56,138.51,7.2196]
[1741422223112,34.25030816,138.57,138.51,7.2196]
[1741422223717,34.25030816,138.57,138.51,41.46980816]
[1741422223921,0.0001,138.57,138.52,34.25020816]
[1741422224513,0.0001,138.57,138.53,7.2186]
[1741422224901,34.25030816,138.57,138.51,1.3]
[1741422225092,34.25020816,138.55,138.51,8.5193]
[1741422225915,34.25020816,138.56,138.51,8.5193]
[1741422227117,34.25030816,138.57,138.51,42.76950816]
[1741422227424,0.0001,138.57,138.51,42.76950816]
[1741422228593,0.0001,138.57,138.52,34.25020816]
[1741422229034,34.25030816,138.57,138.51,60.81870816]
[1741422229423,0.0001,138.57,138.51,60.81870816]
[1741422229920,0.0001,138.57,138.52,18.64964886]
[1741422230107,0.0001,138.57,138.54,34.25020816]
[1741422230625,0.0001,138.57,138.55,7.2176]
[1741422232205,34.25030816,138.57,138.53,8.5184]
[1741422234223,0.0001,138.57,138.53,8.5184]
[1741422234602,34.25030816,138.57,138.53,8.5184]
[1741422234924,34.25020816,138.56,138.53,1.3]
[1741422235123,34.25020816,138.55,138.49,0.033]
[1741422235331,41.46800816,138.55,138.49,7.2537]
[1741422235500,34.25020816,138.55,138.49,7.2537]
[1741422235825,34.25020816,138.55,138.49,41.50390816]
[1741422236126,34.25020816,138.56,138.5,34.25020816]
[1741422236427,40.73030816,138.57,138.51,34.25020816]
[1741422236722,34.25020816,138.56,138.5,34.28320816]
[1741422236930,35.76840816,138.55,138.5,0.033]
[1741422237428,1.5182,138.55,138.51,34.25020816]
[1741422237733,1.5182,138.55,138.5,34.28320816]
[1741422238619,1.5182,138.55,138.51,34.25020816]
[1741422239000,1.5182,138.55,138.52,20.0]
[1741422240233,1.5182,138.55,138.51,7.2196]
[1741422242109,35.76840816,138.55,138.5,8.553]
[1741422242414,42.98600816,138.55,138.5,8.553]
[1741422242616,35.76840816,138.55,138.5,7.253]
[1741422243312,30.1430852,138.55,138.5,0.033]
[1741422243830,30.1430852,138.55,138.5,7.2531]
[1741422244616,30.1430852,138.55,138.5,0.033]
[1741422244814,21.4072852,138.54,138.5,0.033]
[1741422245530,21.4072852,138.53,138.5,0.033]
[1741422247635,21.4072852,138.52,138.5,0.033]
[1741422247812,28.6260852,138.53,138.5,0.033]
[1741422248643,21.4072852,138.53,138.5,0.033]
[1741422248810,27.9290852,138.54,138.5,0.033]
[1741422250134,21.4072852,138.53,138.5,0.033]
[1741422251439,27.9290852,138.54,138.5,0.033]
[1741422251641,6.5218,138.54,138.5,0.033]
[1741422251939,27.9290852,138.54,138.5,0.033]
[1741422252144,6.5218,138.54,138.5,0.033]
[1741422252350,27.9290852,138.54,138.5,0.033]
[1741422252632,21.4072852,138.52,138.5,0.033]
[1741422253633,21.4072852,138.53,138.5,0.033]
[1741422255035,27.9290852,138.54,138.5,0.033]
[1741422255238,1.5182,138.55,138.5,21.4402852]
[1741422256939,1.5182,138.55,138.51,7.2196]
[1741422258840,22.9254852,138.55,138.5,7.2532]
[1741422259646,21.4072852,138.56,138.5,29.9604852]
[1741422259824,0.0001,138.57,138.53,21.4072852]
[1741422260141,0.0001,138.57,138.54,21.4072852]
[1741422260512,0.0001,138.57,138.53,42.7072852]
[1741422260931,0.0001,138.57,138.54,7.2181]
[1741422263742,21.4072852,138.56,138.51,7.2196]
[1741422263942,21.4073852,138.57,138.51,28.6268852]
[1741422264142,0.0001,138.57,138.52,21.4072852]
[1741422264345,0.0001,138.57,138.54,21.4072852]
[1741422264551,0.0001,138.57,138.56,21.4072852]
[1741422265436,0.0001,138.57,138.56,28.6242852]
[1741422265638,0.0001,138.57,138.56,29.9242852]
[1741422265948,0.0001,138.57,138.56,48.57393406]
[1741422269331,0.0001,138.57,138.56,48.71609563]
[1741422269532,0.03,138.63,138.6,20.0]
[1741422269847,0.03,138.63,138.62,21.4072852]
[1741422271347,0.03,138.63,138.62,48.57083406]
[1741422273042,0.03,138.65,138.63,18.64964886]
[1741422273251,0.03,138.65,138.64,40.05693406]
[1741422273425,6.2878,138.71,138.64,65.30213406]
[1741422273426,0.03,138.71,138.64,65.30213406]
[1741422273642,0.03,138.71,138.66,21.4072852]
[1741422274531,21.4072852,138.7,138.64,29.9201852]
[1741422276447,28.6170852,138.7,138.64,29.9201852]
[1741422276649,21.4072852,138.69,138.64,8.5129]
[1741422277345,21.4072852,138.7,138.64,29.9201852]
[1741422278236,21.4072852,138.7,138.64,28.6201852]
[1741422278868,28.6171852,138.7,138.64,7.2129]
[1741422279043,21.4072852,138.69,138.64,7.2129]
[1741422279244,21.4072852,138.68,138.63,7.2133]
[1741422279449,23.0388852,138.68,138.63,7.2133]
[1741422279743,21.4072852,138.67,138.63,7.2133]
[1741422280473,23.0388852,138.68,138.63,7.2133]
[1741422281335,1.6316,138.68,138.63,28.6205852]
[1741422281766,1.6316,138.68,138.63,7.2133]
[1741422281967,6.5007,138.69,138.66,21.4072852]
[1741422282471,1.5906,138.71,138.66,21.4072852]
[1741422282965,22.9978852,138.71,138.66,21.4072852]
[1741422283167,22.9978852,138.71,138.65,21.4072852]
[1741422283534,0.03,138.68,138.66,7.2118]
[1741422287775,0.03,138.68,138.66,28.6190852]
[1741422288377,0.03,138.68,138.67,21.4072852]
[1741422289079,0.03,138.68,138.67,41.35693406]
[1741422289671,0.03,138.68,138.67,48.56823406]
[1741422291447,0.03,138.68,138.67,8.5113]
[1741422291652,0.03,138.68,138.66,7.2116]
[1741422291854,0.03,138.68,138.65,1.3]
[1741422292070,0.03,138.68,138.64,7.2129]
[1741422292675,21.4372852,138.68,138.63,8.5131]
[1741422292879,21.4072852,138.67,138.62,1.333]
[1741422293085,21.4072852,138.66,138.62,1.333]
[1741422293283,21.4072852,138.66,138.62,0.033]
[1741422293485,21.4072852,138.65,138.62,0.033]
[1741422293685,28.6197852,138.65,138.62,0.033]